{"text_format":"1","workbook":"xlsx","n_sheets":6,"sheets":["記入例","①（会議開催日　Ｈ○年○月○日）","②（会議開催日　Ｈ○年○月○日）","③（会議開催日　Ｈ○年○月○日）","評価一覧 (月別)","選択肢一覧"],"not_rendered":{"charts":4,"images":2,"macros":0,"external_links":0,"defined_names":24,"comments":0,"pivot_tables":0},"unopened":[],"bounds":{"document_bytes":16777216,"sheet_cells":100000,"rows_first":2000,"rows_last":500,"rows_between":2000,"halvings":0,"cell_chars":16384,"cell_head_chars":4096},"cells_cut":0,"cells_raw":0,"read":"whole","date_system":"1900"}

{"sheet":"記入例","index":0,"n_rows":70,"n_cols":37,"rows_kept":70,"cut":false,"hidden":false,"merged":[[93,33,95,45],[37,21,37,25],[37,30,37,33],[53,25,53,33],[27,21,27,24],[57,19,57,28],[49,18,50,33],[42,18,43,33],[27,1,28,8],[17,28,17,33],[18,28,18,33],[19,28,19,33],[20,28,20,33],[63,21,65,33],[25,28,25,33],[26,28,26,33],[51,30,51,33],[44,23,44,26],[44,30,44,33],[34,25,34,26],[34,28,34,29],[26,25,26,26],[18,25,18,26],[26,10,26,16],[62,24,62,25],[63,18,71,18],[63,19,65,20],[66,19,68,20],[69,19,71,20],[51,22,51,26],[66,21,68,33],[69,21,71,33],[55,8,55,11],[57,17,71,17],[57,18,62,18],[57,29,57,32],[58,25,58,28],[60,24,60,25],[60,31,60,32],[61,24,61,25],[61,31,61,32],[46,25,46,26],[47,25,47,26],[51,17,56,17],[52,25,52,33],[53,0,56,0],[53,8,53,16],[54,8,54,9],[54,15,54,16],[54,25,54,26],[54,32,54,33],[46,0,52,0],[46,9,52,9],[46,10,52,10],[46,11,52,11],[46,12,52,12],[46,13,52,13],[38,48,43,48],[41,0,45,0],[44,17,50,17],[44,48,52,48],[45,25,45,26],[29,11,45,11],[29,12,45,12],[29,13,45,13],[29,25,29,26],[29,31,29,32],[30,25,30,26],[31,25,31,26],[32,25,32,26],[33,25,33,26],[33,28,33,29],[27,0,28,0],[27,9,27,13],[27,14,27,16],[27,27,27,28],[28,17,36,17],[28,25,28,26],[29,0,34,0],[29,9,45,9],[29,10,45,10],[35,0,40,0],[35,18,36,33],[37,17,43,17],[19,2,19,8],[19,25,19,26],[23,2,23,8],[23,25,23,26],[23,30,23,31],[24,25,24,26],[24,30,24,31],[25,25,25,26],[20,2,20,8],[20,25,20,26],[21,25,21,26],[21,30,21,31],[22,2,22,8],[22,25,22,26],[22,30,22,31],[24,10,24,16],[25,10,25,16],[12,0,26,0],[12,1,12,5],[12,6,12,16],[12,18,13,20],[12,21,13,33],[13,1,13,5],[13,6,13,16],[4,17,16,17],[4,18,4,22],[4,23,4,33],[5,10,5,16],[5,18,5,22],[5,23,5,33],[6,18,7,20],[6,21,7,33],[8,18,9,20],[8,21,9,33],[14,18,16,33],[15,2,15,8],[16,2,16,8],[17,2,17,8],[17,17,27,17],[17,25,17,26],[18,2,18,8],[0,0,0,5],[0,6,1,7],[1,0,1,5],[2,1,2,3],[2,4,2,7],[4,10,4,15],[10,0,11,9],[10,18,11,20],[10,21,11,33]]}
["性　別　　　　男　　・　女",null,null,null,null,null,"本人\n状態",null,"安定期",null,"→","　増悪期",null,null,"→","入院期",null,"会議出席者（所属・職種と氏名を記入してください。）",null,null,null,null,null,null,null,null,null,null,null,null,null,null,null,null,null,null,"・コピーして家族構成に貼り付けて使用"]
["生年月日　大正１５　年　　○　月　○　　日",null,null,null,null,null,null,null,null,null,"退院期",null,"←","急性期",null,null,null,"１．○○良夫先生（○○医院）",null,null,null,null,null,null,null,"２．△△先生（△△歯科クリニック）"]
["介護度","太枠内をクリックして、選択してください→",null,null,"要支援 ２　",null,null,null,null,null,null,null,null,null,null,null,null,"３．　△○　藪子（ケアマネ）",null,null,null,null,null,null,null,"４．○△さん（かかりつけ薬局）　"]
["家族構成（ジェノグラム）",null,null,null,null,null,null,null,null,null,"世帯の状況について　　　",null,null,null,null,null,null,"５．◇□さん（通所介護責任者）",null,null,null,null,null,null,null,"６．○□さん（★ご家族）"]
[null,null,null,null,null,null,null,null,null,null,"老人世帯",null,null,null,null,null,null,"医療情報","かかりつけ医医療機関",null,null,null,null,"○○医院"]
[null,null,null,null,null,null,null,null,null,null,"特記事項（施設名等）",null,null,null,null,null,null,null,"担　当　医　師",null,null,null,null,"○○良夫"]
[null,null,null,null,null,null,null,null,null,null,null,null,null,null,null,null,null,null,"主病名",null,null,"うっ血性心不全"]
[]
[null,null,null,null,null,null,null,null,null,null,null,null,null,null,null,null,null,null,"合併症",null,null,"・高血圧症・白内障\n・ｱﾙﾂﾊｲﾏｰ型認知症・うつ病"]
[]
["本人◎　　　死亡者×　  （ ）に年齢　　例：（◎81）\n男　□　女　〇　　　　同居者は線で囲む　　\n★　キーパーソン\n",null,null,null,null,null,null,null,null,null,null,null,null,null,null,null,null,null,"薬物アレルギー",null,null,"無し"]
[]
["在宅介護生活状況","居宅介護支援事業所",null,null,null,null,"□◇ケアプランセンター",null,null,null,null,null,null,null,null,null,null,null,"感染症等",null,null,"Ｃ型肝炎"]
[null,"担当介護支援専門員",null,null,null,null,"△○　藪子"]
[null,"1）","居宅サービス",null,null,null,null,null,null,null,"月","火","水","木","金","土","日",null,"*処方内容(持参薬)または特別な医療（IVH、胃瘻等）\n・月に1回受診中。内服薬処方。降圧剤にて血圧管理中。\n・認知症状あり、鬱状態で閉じこもりがち。活動量低下による下肢筋力の低下が著しい。\n・白内障の点眼あったが、数年前より眼科受診できていない。"]
[null,null,"訪問介護",null,null,null,null,null,null,null,null,null,"○",null,"○"]
[null,null,"通所介護",null,null,null,null,null,null,null,"○",null,null,"○"]
[null,null,null,null,null,null,null,null,null,null,null,null,null,null,null,null,null,"身体情報",null,"麻痺",null,null,null,null,null,"無し",null,"部位"]
[null,null,null,null,null,null,null,null,null,null,null,null,null,null,null,null,null,null,"2）","筋力低下",null,null,null,null,null,"有り",null,"部位","両下肢"]
[null,null,null,null,null,null,null,null,null,null,null,null,null,null,null,null,null,null,"3）","関節の拘縮",null,null,null,null,null,"無し",null,"部位"]
[null,null,null,null,null,null,null,null,null,null,null,null,null,null,null,null,null,null,"4）","慢性疼痛",null,null,null,null,null,"無し",null,"部位"]
[null,"2）","他介護保険サービス",null,null,null,null,null,null,null,null,null,null,null,null,null,null,null,"5）","視力障害",null,null,"右目失明めがね有り",null,null,"有り",null,"生活支障",null,null,"有り"]
[null,null,"短期入所生活介護",null,null,null,null,null,null,null,null,null,null,null,null,"○",null,null,"6）","聴覚障害",null,null,null,null,null,"有り",null,"生活支障",null,null,"無し"]
[null,null,null,null,null,null,null,null,null,null,null,null,null,null,null,null,null,null,"7）","言語障害",null,null,null,null,null,"無し",null,"生活支障",null,null,"無し"]
[null,"3）","福祉用具貸与",null,null,null,null,null,null,null,"ベット、玄関の補助手すり使用中",null,null,null,null,null,null,null,"8）","嚥下障害",null,null,null,null,null,"無し",null,"生活支障",null,null,"無し"]
[null,"4）","インフォーマルサービス",null,null,null,null,null,null,null,"受診時、介護タクシー利用",null,null,null,null,null,null,null,"9）","皮膚疾患",null,null,null,null,null,"無し",null,"部位"]
[null,"5）","その他",null,null,null,null,null,null,null,null,null,null,null,null,null,null,null,"10）","褥瘡",null,null,null,null,null,"無し",null,"部位"]
["分類","評価項目",null,null,null,null,null,null,null,"評価尺度",null,null,null,null,"評価点",null,null,null,"*身体計測日 　　   年       　月      　日",null,null,"平成28年６月",null,null,null,"身　　長",null,169,null,"cm","体　　重",null,54,"kg"]
[null,null,null,null,null,null,null,null,null,5,4,3,2,1,"前々回","前回","今回","精神及び心の情報","1）","認知症",null,null,null,null,null,"有り",null,"病名","アルツハイマー型認知症"]
["身体面","1）","寝返り",null,null,null,null,null,null,"できる","おおむねできる","支援があればできる","一部介助があればできる","全介助を要する",5,4,3,null,null,"①","周辺状況",null,null,null,null,"有り",null,"②","HDS-R",null,null,null,null,"点"]
[null,"2）","起き上がり",null,null,null,null,null,null,null,null,null,null,null,4,3,3,null,"2）","不眠症",null,null,null,null,null,"有り",null,"昼夜逆転、夜間徘徊がある"]
[null,"3）","座位保持",null,null,null,null,null,null,null,null,null,null,null,5,2,2,null,"3）","高次脳機能障害",null,null,null,null,null,"無し"]
[null,"4）","立ち上がり",null,null,null,null,null,null,null,null,null,null,null,4,3,2,null,"4）","意識障害",null,null,null,null,null,"無し"]
[null,"5）","移乗動作",null,null,null,null,null,null,null,null,null,null,null,5,3,2,null,"6）","精神障害",null,null,null,null,null,"有り",null,"症状","統合失調症"]
[null,"6）","歩行・移動（屋内・屋外）",null,null,null,null,null,null,null,null,null,null,null,5,3,2,null,"7）","社会生活障害",null,null,null,null,null,"有り",null,"症状","人格障害"]
["生活面","1）","入浴",null,null,null,null,null,null,null,null,null,null,null,3,2,3,null,"８）その他"]
[null,"2）","掃除",null,null,null,null,null,null,null,null,null,null,null,2,2,2]
[null,"3）","洗濯",null,null,null,null,null,null,null,null,null,null,null,3,2,2,"リハビリ","担当医療機関名",null,null,null,null,null,null,null,"担当者名（ＯＴ，ＰＴ等）"]
[null,"4）","調理",null,null,null,null,null,null,null,null,null,null,null,1,1,1,null,"1）","機能訓練"]
[null,"5）","外出（通院・買い物）",null,null,null,null,null,null,null,null,null,null,null,4,2,2,null,"2）","物理療法"]
[null,"6）","金銭管理",null,null,null,null,null,null,null,null,null,null,null,3,2,2,null,"3）","装具等"]
["健康面","1）","食事",null,null,null,null,null,null,null,null,null,null,null,3,4,2,null,"リハビリの課題"]
[null,"2）","排泄",null,null,null,null,null,null,null,null,null,null,null,2,5,2,null,"・2ヶ月前から筋力低下がみられ、デイサービスを1ヶ月欠席。送迎時の体勢がつらいとの訴えがあった。"]
[null,"3）","更衣",null,null,null,null,null,null,null,null,null,null,null,3,3,2]
[null,"4）","薬管理",null,null,null,null,null,null,null,null,null,null,null,2,1,1,"歯科情報","かかりつけ歯科医療機関名",null,null,null,null,"△△歯科クリニック",null,null,null,"担当歯科医師名",null,null,"△△　○雄"]
[null,"5）","口腔ケア",null,null,null,null,null,null,null,null,null,null,null,2,2,2,null,"1）","歯科口腔疾患",null,null,null,null,null,"有り",null,"歯肉炎（出血あり）"]
["精神認知面","1）","見当識（場所がわからない）",null,null,null,null,null,null,"問題がない","疑いがある","ある(頻度低い）","ある(頻度高い）","常態化している",2,3,3,null,"2）","義歯の有無",null,null,null,null,null,"有り",null,"部分入れ歯あり"]
[null,"2）","記憶（時系列がわからない）",null,null,null,null,null,null,null,null,null,null,null,4,4,4,null,"3）","定期診察の必要性",null,null,null,null,null,"有り",null,"歯根治療が必要。"]
[null,"3）","精神状態（被害妄想、幻覚等）",null,null,null,null,null,null,null,null,null,null,null,3,2,3,null,"口腔ケアの課題"]
[null,"4）","徘徊",null,null,null,null,null,null,null,null,null,null,null,3,2,2,null,"・部分入れ歯をよく外して、紛失することがある。（家族より）\n・義歯の調整、歯肉の治療が必要だが、それには本人の了解と協力が必要。訪問歯科診療だけでなく、通院してもらう必要がある。"]
[null,"5）","判断力・意思決定",null,null,null,null,null,null,null,null,null,null,null,2,2,2]
[null,"6）","対人トラブル",null,null,null,null,null,null,null,null,null,null,null,4,4,4,"薬剤情報","かかりつけ薬局名",null,null,null,"○△調剤薬局",null,null,null,null,"担当薬剤師名",null,null,"○△"]
[null,"7）","社会参加",null,null,null,null,null,null,null,null,null,null,null,1,1,1,null,"1）","薬の管理",null,null,null,null,null,"全介助"]
["食事","1）","摂取方法",null,null,null,null,null,"自立",null,null,null,null,null,null,null,null,null,"2）","服薬状況（残薬確認）",null,null,null,null,null,"家族が毎日対応する。ヘルパーも確認している"]
[null,"2）","食事形態",null,null,null,"主　　食",null,"普通食",null,null,null,null,"副　　食",null,"刻み食",null,null,"3）","家族の協力",null,null,null,null,null,"有り",null,null,"4）","他院処方",null,null,"有り"]
[null,"3）","水分摂取状況",null,null,null,null,null,"問題あり",null,null,null,null,null,null,null,null,null,"服薬の課題"]
[null,"4）","嗜好/禁忌食品",null,null,null,null,null,"お酒週２回、１合程度、飲むときある",null,null,null,null,null,null,null,null,null,"・認知症であり、薬剤管理は全て、家族が管理する。"]
[null,null,null,null,null,null,null,null,null,null,null,null,null,null,null,null,null,"今後の方針","医療面","岐阜県医師会在宅療養あんしん病床登録　",null,null,null,null,null,null,null,null,null,"登録している"]
[null,null,null,null,null,null,null,null,null,null,null,null,null,null,null,null,null,null,null,"延命処置について",null,null,null,null,null,"希望する"]
[null,null,null,null,null,null,null,null,null,null,null,null,null,null,null,null,null,null,null,"　　※希望するを選択した場合は、以下の急変時の対応を選択してください。"]
[null,null,null,null,null,null,null,null,null,null,null,null,null,null,null,null,null,null,null,"・心臓マッサージ　　　　",null,null,null,null,"無し",null,null,"・気管内挿管　　　　",null,null,null,"無し"]
[null,null,null,null,null,null,null,null,null,null,null,null,null,null,null,null,null,null,null,"・除細動（電気ショック）　 ",null,null,null,null,"無し",null,null,"・人工呼吸　　",null,null,null,"無し"]
[null,null,null,null,null,null,null,null,null,null,null,null,null,null,null,null,null,null,null,"・蘇生に関わる薬剤の投与",null,null,null,null,"無し",null,null,"（人工呼吸器の装着・バッグアンドマスクなど）"]
[null,null,null,null,null,null,null,null,null,null,null,null,null,null,null,null,null,null,"介護面の課題等","通所介護\n通所リハ",null,"通所介護への欠席が続いている。精神的な落ち込みがあるため、無理につれていけない。入浴も出来ていないとのことで、訪問介助による入浴介助を試す。※しばらくは訪問リハで対応し、筋力の低下を予防"]
[]
[]
[null,null,null,null,null,null,null,null,null,null,null,null,null,null,null,null,null,null,null,"訪問\n介護",null,"入浴を進めていくが、拒否が強い場合は、無理強いせず、部分清拭や足浴で対応する。家族も高齢で、服薬管理が不安あるので、定期的に薬局の残薬管理を。"]
[]
[]
[null,null,null,null,null,null,null,null,null,null,null,null,null,null,null,null,null,null,null,"短期\n入所",null,"なるべく入浴優先で利用。家族からは、レスパイト・ケアとして、今後も継続利用を希望。（2ヶ月後、遠方の法事出席で長期不在の予定ある事を確認、ショート利用希望あり）"]

{"sheet":"①（会議開催日　Ｈ○年○月○日）","index":1,"n_rows":70,"n_cols":37,"rows_kept":70,"cut":false,"hidden":false,"merged":[[4,23,4,33],[5,10,5,16],[5,18,5,22],[5,23,5,33],[0,0,0,5],[0,6,1,7],[1,0,1,5],[2,1,2,3],[2,4,2,7],[4,17,16,17],[13,1,13,5],[13,6,13,16],[8,18,9,20],[10,0,11,9],[10,18,11,20],[12,0,26,0],[12,1,12,5],[12,6,12,16],[12,18,13,20],[4,10,4,15],[4,18,4,22],[22,2,22,8],[6,18,7,20],[6,21,7,33],[27,0,28,0],[28,17,36,17],[28,25,28,26],[29,0,34,0],[29,10,45,10],[29,11,45,11],[23,2,23,8],[23,25,23,26],[12,21,13,33],[14,18,16,33],[15,2,15,8],[16,2,16,8],[17,2,17,8],[17,17,27,17],[17,25,17,26],[18,2,18,8],[18,25,18,26],[19,2,19,8],[19,25,19,26],[23,30,23,31],[24,25,24,26],[24,30,24,31],[25,25,25,26],[20,2,20,8],[53,0,56,0],[53,8,53,16],[54,15,54,16],[54,25,54,26],[38,48,43,48],[41,0,45,0],[44,17,50,17],[44,48,52,48],[45,25,45,26],[46,0,52,0],[46,10,52,10],[46,11,52,11],[46,12,52,12],[46,13,52,13],[35,0,40,0],[35,18,36,33],[37,17,43,17],[29,12,45,12],[29,13,45,13],[29,25,29,26],[30,25,30,26],[31,25,31,26],[29,31,29,32],[37,30,37,33],[60,31,60,32],[60,24,60,25],[63,19,65,20],[66,19,68,20],[69,19,71,20],[27,14,27,16],[29,9,45,9],[27,9,27,13],[46,9,52,9],[57,17,71,17],[57,18,62,18],[63,18,71,18],[61,24,61,25],[62,24,62,25],[61,31,61,32],[27,27,27,28],[37,22,37,25],[44,30,44,33],[44,23,44,26],[56,8,56,16],[53,25,53,33],[63,21,65,33],[66,21,68,33],[69,21,71,33],[58,25,58,28],[54,10,54,11],[26,25,26,26],[20,25,20,26],[21,25,21,26],[21,30,21,31],[54,32,54,33],[32,25,32,26],[33,25,33,26],[55,8,55,11],[27,1,28,8],[51,30,51,33],[51,22,51,26],[57,19,57,28],[20,29,20,33],[25,29,25,33],[26,29,26,33],[24,10,24,16],[25,10,25,16],[26,10,26,16],[22,25,22,26],[22,30,22,31],[27,21,27,24],[57,29,57,32],[8,21,9,33],[10,21,11,33],[46,25,46,26],[47,25,47,26],[51,17,56,17],[52,25,52,33],[33,28,33,29],[34,25,34,26],[34,28,34,29],[17,29,17,33],[18,29,18,33],[19,29,19,33]]}
["性　別　　　　男　　・　女",null,null,null,null,null,"本人\n状態",null,"安定期",null,"→","　増悪期",null,null,"→","入院期",null,"会議出席者（所属・職種と氏名を記入してください。）",null,null,null,null,null,null,null,null,null,null,null,null,null,null,null,null,null,null,"・コピーして家族構成に貼り付けて使用"]
["生年月日　　　　　年　　　月　　　日",null,null,null,null,null,null,null,null,null,"退院期",null,"←","急性期"]
["介護度","太枠内をクリックして、選択してください→"]
["家族構成（ジェノグラム）",null,null,null,null,null,null,null,null,null,"世帯の状況について　　　"]
[null,null,null,null,null,null,null,null,null,null,null,null,null,null,null,null,null,"医療情報","かかりつけ医医療機関"]
[null,null,null,null,null,null,null,null,null,null,"特記事項（施設名等）",null,null,null,null,null,null,null,"担　当　医　師"]
[null,null,null,null,null,null,null,null,null,null,null,null,null,null,null,null,null,null,"主病名"]
[]
[null,null,null,null,null,null,null,null,null,null,null,null,null,null,null,null,null,null,"合併症"]
[]
["本人◎　　　死亡者×　  （ ）に年齢　　例：（◎81）\n男　□　女　〇　　　　同居者は線で囲む　　\n★　キーパーソン\n",null,null,null,null,null,null,null,null,null,null,null,null,null,null,null,null,null,"薬物アレルギー"]
[]
["在宅介護生活状況","居宅介護支援事業所",null,null,null,null,null,null,null,null,null,null,null,null,null,null,null,null,"感染症等"]
[null,"担当介護支援専門員"]
[null,"1）","居宅サービス",null,null,null,null,null,null,null,"月","火","水","木","金","土","日",null,"*処方内容(持参薬)または特別な医療（IVH、胃瘻等）\n・\n・\n・"]
[]
[]
[null,null,null,null,null,null,null,null,null,null,null,null,null,null,null,null,null,"身体情報","1）","麻痺",null,null,null,null,null,null,null,"部位"]
[null,null,null,null,null,null,null,null,null,null,null,null,null,null,null,null,null,null,"2）","筋力低下",null,null,null,null,null,null,null,"部位"]
[null,null,null,null,null,null,null,null,null,null,null,null,null,null,null,null,null,null,"3）","関節の拘縮",null,null,null,null,null,null,null,"部位"]
[null,null,null,null,null,null,null,null,null,null,null,null,null,null,null,null,null,null,"4）","慢性疼痛",null,null,null,null,null,null,null,"部位"]
[null,"2）","他介護保険サービス",null,null,null,null,null,null,null,null,null,null,null,null,null,null,null,"5）","視力障害",null,null,null,null,null,null,null,"生活支障"]
[null,null,"短期入所生活介護",null,null,null,null,null,null,null,null,null,null,null,null,null,null,null,"6）","聴覚障害",null,null,null,null,null,null,null,"生活支障"]
[null,null,null,null,null,null,null,null,null,null,null,null,null,null,null,null,null,null,"7）","言語障害",null,null,null,null,null,null,null,"生活支障"]
[null,"3）","福祉用具貸与",null,null,null,null,null,null,null,null,null,null,null,null,null,null,null,"8）","嚥下障害",null,null,null,null,null,null,null,"生活支障"]
[null,"4）","インフォーマルサービス",null,null,null,null,null,null,null,null,null,null,null,null,null,null,null,"9）","皮膚疾患",null,null,null,null,null,null,null,"部位"]
[null,"5）","その他",null,null,null,null,null,null,null,null,null,null,null,null,null,null,null,"10）","褥瘡",null,null,null,null,null,null,null,"部位"]
["分類","評価項目",null,null,null,null,null,null,null,"評価尺度",null,null,null,null,"評価点",null,null,null,"*身体計測日 　　   年       　月      　日",null,null,"平成○年○月",null,null,null,"身　　　長",null,null,null,"cm","体　　重",null,null,"kg"]
[null,null,null,null,null,null,null,null,null,5,4,3,2,1,"今回","次回","次々回","精神及び心の情報","1）","認知症",null,null,null,null,null,null,null,"病名"]
["身体面","1）","寝返り",null,null,null,null,null,null,"できる","おおむねできる","支援があればできる","一部介助があればできる","全介助を要する",5,null,null,null,null,"①","周辺状況",null,null,null,null,null,null,"②","HDS-R",null,null,null,null,"点"]
[null,"2）","起き上がり",null,null,null,null,null,null,null,null,null,null,null,4,null,null,null,"2）","不眠症"]
[null,"3）","座位保持",null,null,null,null,null,null,null,null,null,null,null,5,null,null,null,"3）","高次脳機能障害"]
[null,"4）","立ち上がり",null,null,null,null,null,null,null,null,null,null,null,4,null,null,null,"4）","意識障害"]
[null,"5）","移乗動作",null,null,null,null,null,null,null,null,null,null,null,5,null,null,null,"6）","精神障害",null,null,null,null,null,null,null,"症状"]
[null,"6）","歩行・移動（屋内・屋外）",null,null,null,null,null,null,null,null,null,null,null,5,null,null,null,"7）","社会生活障害",null,null,null,null,null,null,null,"症状"]
["生活面","1）","入浴",null,null,null,null,null,null,null,null,null,null,null,3,null,null,null,"８）その他"]
[null,"2）","掃除",null,null,null,null,null,null,null,null,null,null,null,2]
[null,"3）","洗濯",null,null,null,null,null,null,null,null,null,null,null,3,null,null,"リハビリ","担当医療機関名",null,null,null,null,null,null,null,"担当者名（ＯＴ，ＰＴ等）"]
[null,"4）","調理",null,null,null,null,null,null,null,null,null,null,null,1,null,null,null,"1）","機能訓練"]
[null,"5）","外出（通院・買い物）",null,null,null,null,null,null,null,null,null,null,null,4,null,null,null,"2）","物理療法"]
[null,"6）","金銭管理",null,null,null,null,null,null,null,null,null,null,null,3,null,null,null,"3）","装具等"]
["健康面","1）","食事",null,null,null,null,null,null,null,null,null,null,null,3,null,null,null,"リハビリの課題"]
[null,"2）","排泄",null,null,null,null,null,null,null,null,null,null,null,2]
[null,"3）","更衣",null,null,null,null,null,null,null,null,null,null,null,3]
[null,"4）","薬管理",null,null,null,null,null,null,null,null,null,null,null,2,null,null,"歯科情報","かかりつけ歯科医療機関名",null,null,null,null,null,null,null,null,"担当歯科医師名"]
[null,"5）","口腔ケア",null,null,null,null,null,null,null,null,null,null,null,2,null,null,null,"1）","歯科口腔疾患"]
["精神認知面","1）","見当識（場所がわからない）",null,null,null,null,null,null,"問題がない","疑いがある","ある(頻度低い）","ある(頻度高い）","常態化している",2,null,null,null,"2）","義歯の有無"]
[null,"2）","記憶（時系列がわからない）",null,null,null,null,null,null,null,null,null,null,null,4,null,null,null,"3）","定期診察の必要性"]
[null,"3）","精神状態（被害妄想、幻覚等）",null,null,null,null,null,null,null,null,null,null,null,3,null,null,null,"口腔ケアの課題"]
[null,"4）","徘徊",null,null,null,null,null,null,null,null,null,null,null,3]
[null,"5）","判断力・意思決定",null,null,null,null,null,null,null,null,null,null,null,2]
[null,"6）","対人トラブル",null,null,null,null,null,null,null,null,null,null,null,4,null,null,"薬剤情報","かかりつけ薬局名",null,null,null,null,null,null,null,null,"担当薬剤師名"]
[null,"7）","社会参加",null,null,null,null,null,null,null,null,null,null,null,1,null,null,null,"1）","薬の管理"]
["食事","1）","摂取方法",null,null,null,null,null,null,null,null,null,null,null,null,null,null,null,"2）","服薬状況（残薬確認）"]
[null,"2）","食事形態",null,null,null,null,null,"主　　食",null,null,null,null,"副　　食",null,null,null,null,"3）","家族の協力",null,null,null,null,null,null,null,null,"4）","他院処方"]
[null,"3）","水分摂取状況",null,null,null,null,null,null,null,null,null,null,null,null,null,null,null,"服薬の課題"]
[null,"4）","嗜好/禁忌食品"]
[null,null,null,null,null,null,null,null,null,null,null,null,null,null,null,null,null,"今後の方針","医療面","岐阜県医師会在宅療養あんしん病床登録　"]
[null,null,null,null,null,null,null,null,null,null,null,null,null,null,null,null,null,null,null,"延命処置について"]
[null,null,null,null,null,null,null,null,null,null,null,null,null,null,null,null,null,null,null,"※希望するを選択した場合は、以下の急変時の対応を選択してください。"]
[null,null,null,null,null,null,null,null,null,null,null,null,null,null,null,null,null,null,null,"・心臓マッサージ　　　　",null,null,null,null,null,null,null,"・気管内挿管　　　　"]
[null,null,null,null,null,null,null,null,null,null,null,null,null,null,null,null,null,null,null,"・除細動（電気ショック）　 ",null,null,null,null,null,null,null,"・人工呼吸　　"]
[null,null,null,null,null,null,null,null,null,null,null,null,null,null,null,null,null,null,null,"・蘇生に関わる薬剤の投与",null,null,null,null,null,null,null,"（人工呼吸器の装着・バッグアンドマスクなど）"]
[null,null,null,null,null,null,null,null,null,null,null,null,null,null,null,null,null,null,"介護面の課題等","通所介護\n通所 リハ"]
[]
[]
[null,null,null,null,null,null,null,null,null,null,null,null,null,null,null,null,null,null,null,"訪問\n介護"]
[]
[]
[null,null,null,null,null,null,null,null,null,null,null,null,null,null,null,null,null,null,null,"短期\n入所"]

{"sheet":"②（会議開催日　Ｈ○年○月○日）","index":2,"n_rows":70,"n_cols":37,"rows_kept":70,"cut":false,"hidden":false,"merged":[[56,8,57,16],[17,29,17,33],[18,29,18,33],[19,29,19,33],[20,29,20,33],[63,21,65,33],[66,21,68,33],[69,21,71,33],[28,29,28,33],[29,31,29,32],[27,21,27,24],[57,19,57,28],[32,25,32,26],[33,25,33,26],[26,25,26,26],[27,27,27,28],[4,18,4,22],[4,23,4,33],[5,10,5,16],[5,18,5,22],[5,23,5,33],[6,18,7,20],[6,21,7,33],[0,0,0,5],[0,6,1,7],[1,0,1,5],[2,1,2,3],[2,4,2,7],[4,17,16,17],[13,1,13,5],[13,6,13,16],[8,18,9,20],[8,21,9,33],[10,0,11,9],[10,18,11,20],[10,21,11,33],[12,0,26,0],[12,1,12,5],[12,6,12,16],[12,18,13,20],[14,18,16,33],[15,2,15,8],[16,2,16,8],[17,2,17,8],[17,17,27,17],[17,25,17,26],[18,2,18,8],[18,25,18,26],[19,2,19,8],[19,25,19,26],[23,2,23,8],[23,25,23,26],[23,30,23,31],[24,25,24,26],[24,30,24,31],[25,25,25,26],[20,2,20,8],[20,25,20,26],[21,25,21,26],[21,30,21,31],[22,2,22,8],[22,25,22,26],[22,30,22,31],[27,0,28,0],[27,9,27,13],[27,14,27,16],[28,17,36,17],[28,25,28,26],[29,0,34,0],[29,9,45,9],[29,10,45,10],[29,11,45,11],[27,1,28,8],[38,48,43,48],[41,0,45,0],[44,17,50,17],[44,48,52,48],[45,25,45,26],[46,0,52,0],[46,9,52,9],[46,10,52,10],[46,11,52,11],[46,12,52,12],[46,13,52,13],[46,25,46,26],[47,25,47,26],[51,17,56,17],[52,25,52,33],[53,0,56,0],[53,8,53,16],[54,8,54,9],[54,15,54,16],[54,25,54,26],[55,8,55,11],[35,0,40,0],[35,18,36,33],[37,17,43,17],[4,10,4,15],[63,19,65,20],[66,19,68,20],[69,19,71,20],[54,32,54,33],[57,17,71,17],[57,18,62,18],[63,18,71,18],[57,29,57,32],[58,25,58,28],[60,24,60,25],[60,31,60,32],[61,24,61,25],[61,31,61,32],[62,24,62,25],[33,28,33,29],[34,25,34,26],[34,28,34,29],[29,12,45,12],[29,13,45,13],[29,25,29,26],[30,25,30,26],[31,25,31,26],[12,21,13,33]]}
["性　別　　　　男　　・　女",null,null,null,null,null,"本人\n状態",null,"安定期",null,"→","　増悪期",null,null,"→","入院期",null,"会議出席者（所属・職種と氏名を記入してください。）",null,null,null,null,null,null,null,null,null,null,null,null,null,null,null,null,null,null,"・コピーして家族構成に貼り付けて使用"]
["生年月日　　　　　年　　　月　　　日",null,null,null,null,null,null,null,null,null,"退院期",null,"←","急性期"]
["介護度","太枠内をクリックして、選択してください→"]
["家族構成（ジェノグラム）",null,null,null,null,null,null,null,null,null,"世帯の状況について　　　"]
[null,null,null,null,null,null,null,null,null,null,null,null,null,null,null,null,null,"医療情報","かかりつけ医医療機関"]
[null,null,null,null,null,null,null,null,null,null,"特記事項（施設名等）",null,null,null,null,null,null,null,"担　当　医　師"]
[null,null,null,null,null,null,null,null,null,null,null,null,null,null,null,null,null,null,"主病名"]
[]
[null,null,null,null,null,null,null,null,null,null,null,null,null,null,null,null,null,null,"合併症"]
[]
["本人◎　　　死亡者×　  （ ）に年齢　　例：（◎81）\n男　□　女　〇　　　　同居者は線で囲む　　\n★　キーパーソン\n",null,null,null,null,null,null,null,null,null,null,null,null,null,null,null,null,null,"薬物アレルギー"]
[]
["在宅介護生活状況","居宅介護支援事業所",null,null,null,null,null,null,null,null,null,null,null,null,null,null,null,null,"感染症等"]
[null,"担当介護支援専門員"]
[null,"1）","居宅サービス",null,null,null,null,null,null,null,"月","火","水","木","金","土","日",null,"*処方内容(持参薬)または特別な医療（IVH、胃瘻等）\n・\n・\n・"]
[]
[]
[null,null,null,null,null,null,null,null,null,null,null,null,null,null,null,null,null,"身体情報","1）","麻痺",null,null,null,null,null,null,null,"部位"]
[null,null,null,null,null,null,null,null,null,null,null,null,null,null,null,null,null,null,"2）","筋力低下",null,null,null,null,null,null,null,"部位"]
[null,null,null,null,null,null,null,null,null,null,null,null,null,null,null,null,null,null,"3）","関節の拘縮",null,null,null,null,null,null,null,"部位"]
[null,null,null,null,null,null,null,null,null,null,null,null,null,null,null,null,null,null,"4）","慢性疼痛",null,null,null,null,null,null,null,"部位"]
[null,"2）","他介護保険サービス",null,null,null,null,null,null,null,null,null,null,null,null,null,null,null,"5）","視力障害",null,null,null,null,null,null,null,"生活支障"]
[null,null,null,null,null,null,null,null,null,null,null,null,null,null,null,null,null,null,"6）","聴覚障害",null,null,null,null,null,null,null,"生活支障"]
[null,null,null,null,null,null,null,null,null,null,null,null,null,null,null,null,null,null,"7）","言語障害",null,null,null,null,null,null,null,"生活支障"]
[null,"3）","福祉用具貸与",null,null,null,null,null,null,null,null,null,null,null,null,null,null,null,"8）","嚥下障害",null,null,null,null,null,null,null,"生活支障"]
[null,"4）","インフォーマルサービス",null,null,null,null,null,null,null,null,null,null,null,null,null,null,null,"9）","皮膚疾患",null,null,null,null,null,null,null,"部位"]
[null,"5）","その他",null,null,null,null,null,null,null,null,null,null,null,null,null,null,null,"10）","褥瘡",null,null,null,null,null,null,null,"部位"]
["分類","評価項目",null,null,null,null,null,null,null,"評価尺度",null,null,null,null,"評価点",null,null,null,"*身体計測日 　　   年       　月      　日",null,null,"平成○年○月",null,null,null,"身　　長",null,null,null,"cm","体　　重",null,null,"kg"]
[null,null,null,null,null,null,null,null,null,5,4,3,2,1,"前回","今回","次回","精神及び心の情報","1）","認知症",null,null,null,null,null,null,null,"病名"]
["身体面","1）","寝返り",null,null,null,null,null,null,"できる","おおむねできる","支援があればできる","一部介助があればできる","全介助を要する",{"$f":"'①（会議開催日　Ｈ○年○月○日）'!O30","v":5},4,null,null,null,"①","周辺状況",null,null,null,null,null,null,"②","HDS-R",null,null,null,null,"点"]
[null,"2）","起き上がり",null,null,null,null,null,null,null,null,null,null,null,{"$f":"'①（会議開催日　Ｈ○年○月○日）'!O31","v":4},3,null,null,"2）","不眠症"]
[null,"3）","座位保持",null,null,null,null,null,null,null,null,null,null,null,{"$f":"'①（会議開催日　Ｈ○年○月○日）'!O32","v":5},2,null,null,"3）","高次脳機能障害"]
[null,"4）","立ち上がり",null,null,null,null,null,null,null,null,null,null,null,{"$f":"'①（会議開催日　Ｈ○年○月○日）'!O33","v":4},3,null,null,"4）","意識障害"]
[null,"5）","移乗動作",null,null,null,null,null,null,null,null,null,null,null,{"$f":"'①（会議開催日　Ｈ○年○月○日）'!O34","v":5},3,null,null,"6）","精神障害",null,null,null,null,null,null,null,"症状"]
[null,"6）","歩行・移動（屋内・屋外）",null,null,null,null,null,null,null,null,null,null,null,{"$f":"'①（会議開催日　Ｈ○年○月○日）'!O35","v":5},3,null,null,"7）","社会生活障害",null,null,null,null,null,null,null,"症状"]
["生活面","1）","入浴",null,null,null,null,null,null,null,null,null,null,null,{"$f":"'①（会議開催日　Ｈ○年○月○日）'!O36","v":3},2,null,null,"８）その他"]
[null,"2）","掃除",null,null,null,null,null,null,null,null,null,null,null,{"$f":"'①（会議開催日　Ｈ○年○月○日）'!O37","v":2},2]
[null,"3）","洗濯",null,null,null,null,null,null,null,null,null,null,null,{"$f":"'①（会議開催日　Ｈ○年○月○日）'!O38","v":3},2,null,"リハビリ","担当医療機関名",null,null,null,null,null,null,null,"担当者名（ＯＴ，ＰＴ等）"]
[null,"4）","調理",null,null,null,null,null,null,null,null,null,null,null,{"$f":"'①（会議開催日　Ｈ○年○月○日）'!O39","v":1},1,null,null,"1）","機能訓練"]
[null,"5）","外出（通院・買い物）",null,null,null,null,null,null,null,null,null,null,null,{"$f":"'①（会議開催日　Ｈ○年○月○日）'!O40","v":4},2,null,null,"2）","物理療法"]
[null,"6）","金銭管理",null,null,null,null,null,null,null,null,null,null,null,{"$f":"'①（会議開催日　Ｈ○年○月○日）'!O41","v":3},2,null,null,"3）","装具等"]
["健康面","1）","食事",null,null,null,null,null,null,null,null,null,null,null,{"$f":"'①（会議開催日　Ｈ○年○月○日）'!O42","v":3},4,null,null,"リハビリの課題"]
[null,"2）","排泄",null,null,null,null,null,null,null,null,null,null,null,{"$f":"'①（会議開催日　Ｈ○年○月○日）'!O43","v":2},5]
[null,"3）","更衣",null,null,null,null,null,null,null,null,null,null,null,{"$f":"'①（会議開催日　Ｈ○年○月○日）'!O44","v":3},3]
[null,"4）","薬管理",null,null,null,null,null,null,null,null,null,null,null,{"$f":"'①（会議開催日　Ｈ○年○月○日）'!O45","v":2},1,null,"歯科情報","かかりつけ歯科医療機関名",null,null,null,null,null,null,null,null,"担当歯科医師名"]
[null,"5）","口腔ケア",null,null,null,null,null,null,null,null,null,null,null,{"$f":"'①（会議開催日　Ｈ○年○月○日）'!O46","v":2},2,null,null,"1）","歯科口腔疾患"]
["精神認知面","1）","見当識（場所がわからない）",null,null,null,null,null,null,"問題がない","疑いがある","ある(頻度低い）","ある(頻度高い）","常態化している",{"$f":"'①（会議開催日　Ｈ○年○月○日）'!O47","v":2},3,null,null,"2）","義歯の有無"]
[null,"2）","記憶（時系列がわからない）",null,null,null,null,null,null,null,null,null,null,null,{"$f":"'①（会議開催日　Ｈ○年○月○日）'!O48","v":4},4,null,null,"3）","定期診察の必要性"]
[null,"3）","精神状態（被害妄想、幻覚等）",null,null,null,null,null,null,null,null,null,null,null,{"$f":"'①（会議開催日　Ｈ○年○月○日）'!O49","v":3},2,null,null,"口腔ケアの課題"]
[null,"4）","徘徊",null,null,null,null,null,null,null,null,null,null,null,{"$f":"'①（会議開催日　Ｈ○年○月○日）'!O50","v":3},2]
[null,"5）","判断力・意思決定",null,null,null,null,null,null,null,null,null,null,null,{"$f":"'①（会議開催日　Ｈ○年○月○日）'!O51","v":2},2]
[null,"6）","対人トラブル",null,null,null,null,null,null,null,null,null,null,null,{"$f":"'①（会議開催日　Ｈ○年○月○日）'!O52","v":4},4,null,"薬剤情報","かかりつけ薬局名",null,null,null,null,null,null,null,null,"担当薬剤師名"]
[null,"7）","社会参加",null,null,null,null,null,null,null,null,null,null,null,{"$f":"'①（会議開催日　Ｈ○年○月○日）'!O53","v":1},1,null,null,"1）","薬の管理"]
["食事","1）","摂取方法",null,null,null,null,null,null,null,null,null,null,null,null,null,null,null,"2）","服薬状況（残薬確認）"]
[null,"2）","食事形態",null,null,null,"主　　食",null,null,null,null,null,null,"副　　食",null,null,null,null,"3）","家族の協力",null,null,null,null,null,null,null,null,"4）","他院処方"]
[null,"3）","水分摂取状況",null,null,null,null,null,null,null,null,null,null,null,null,null,null,null,"服薬の課題"]
[null,"4）","嗜好/禁忌食品"]
[null,null,null,null,null,null,null,null,null,null,null,null,null,null,null,null,null,"今後の方針","医療面","岐阜県医師会在宅療養あんしん病床登録　"]
[null,null,null,null,null,null,null,null,null,null,null,null,null,null,null,null,null,null,null,"延命処置について"]
[null,null,null,null,null,null,null,null,null,null,null,null,null,null,null,null,null,null,null,"※希望するを選択した場合は、以下の急変時の対応を選択してください。"]
[null,null,null,null,null,null,null,null,null,null,null,null,null,null,null,null,null,null,null,"・心臓マッサージ　　　　",null,null,null,null,null,null,null,"・気管内挿管　　　　"]
[null,null,null,null,null,null,null,null,null,null,null,null,null,null,null,null,null,null,null,"・除細動（電気ショック）　 ",null,null,null,null,null,null,null,"・人工呼吸　　"]
[null,null,null,null,null,null,null,null,null,null,null,null,null,null,null,null,null,null,null,"・蘇生に関わる薬剤の投与",null,null,null,null,null,null,null,"（人工呼吸器の装着・バッグアンドマスクなど）"]
[null,null,null,null,null,null,null,null,null,null,null,null,null,null,null,null,null,null,"介護面の課題等","通所介護\n通所 リハ"]
[]
[]
[null,null,null,null,null,null,null,null,null,null,null,null,null,null,null,null,null,null,null,"訪問\n介護"]
[]
[]
[null,null,null,null,null,null,null,null,null,null,null,null,null,null,null,null,null,null,null,"短期\n入所"]

{"sheet":"③（会議開催日　Ｈ○年○月○日）","index":3,"n_rows":70,"n_cols":37,"rows_kept":70,"cut":false,"hidden":false,"merged":[[27,27,27,28],[29,31,29,32],[4,18,4,22],[4,23,4,33],[5,10,5,16],[5,18,5,22],[5,23,5,33],[6,18,7,20],[6,21,7,33],[8,21,9,33],[10,21,11,33],[12,21,13,33],[19,25,19,26],[4,10,4,15],[24,10,24,16],[25,10,25,16],[26,10,26,16],[17,29,17,33],[18,29,18,33],[19,29,19,33],[20,29,20,33],[25,29,25,33],[26,29,26,33],[27,21,27,24],[0,0,0,5],[0,6,1,7],[1,0,1,5],[2,1,2,3],[2,4,2,7],[4,17,16,17],[13,1,13,5],[13,6,13,16],[8,18,9,20],[10,0,11,9],[10,18,11,20],[12,0,26,0],[12,1,12,5],[12,6,12,16],[12,18,13,20],[14,18,16,33],[15,2,15,8],[16,2,16,8],[17,2,17,8],[17,17,27,17],[17,25,17,26],[18,2,18,8],[18,25,18,26],[19,2,19,8],[23,2,23,8],[23,25,23,26],[23,30,23,31],[24,25,24,26],[24,30,24,31],[25,25,25,26],[20,2,20,8],[20,25,20,26],[21,25,21,26],[21,30,21,31],[22,2,22,8],[22,25,22,26],[22,30,22,31],[26,25,26,26],[27,0,28,0],[27,9,27,13],[27,14,27,16],[28,17,36,17],[28,25,28,26],[29,0,34,0],[29,9,45,9],[29,10,45,10],[29,11,45,11],[27,1,28,8],[38,48,43,48],[41,0,45,0],[44,17,50,17],[44,48,52,48],[45,25,45,26],[46,0,52,0],[46,9,52,9],[46,10,52,10],[46,11,52,11],[46,12,52,12],[46,13,52,13],[46,25,46,26],[47,25,47,26],[51,17,56,17],[52,25,52,33],[53,0,56,0],[53,8,53,16],[54,8,54,9],[54,15,54,16],[54,25,54,26],[55,8,55,11],[35,0,40,0],[35,18,36,33],[37,17,43,17],[66,19,68,20],[69,19,71,20],[54,32,54,33],[57,17,71,17],[57,18,62,18],[63,18,71,18],[57,29,57,32],[58,25,58,28],[60,24,60,25],[60,31,60,32],[61,24,61,25],[61,31,61,32],[62,24,62,25],[63,21,65,33],[66,21,68,33],[69,21,71,33],[57,19,57,28],[33,28,33,29],[34,25,34,26],[34,28,34,29],[29,12,45,12],[29,13,45,13],[29,25,29,26],[30,25,30,26],[31,25,31,26],[63,19,65,20],[32,25,32,26],[33,25,33,26]]}
["性　別　　　　男　　・　女",null,null,null,null,null,"本人\n状態",null,"安定期",null,"→","　増悪期",null,null,"→","入院期",null,"会議出席者（所属・職種と氏名を記入してください。）",null,null,null,null,null,null,null,null,null,null,null,null,null,null,null,null,null,null,"・コピーして家族構成に貼り付けて使用"]
["生年月日　　　　　年　　　月　　　日",null,null,null,null,null,null,null,null,null,"退院期",null,"←","急性期"]
["介護度","太枠内をクリックして、選択してください→"]
["家族構成（ジェノグラム）",null,null,null,null,null,null,null,null,null,"世帯の状況について　　　"]
[null,null,null,null,null,null,null,null,null,null,null,null,null,null,null,null,null,"医療情報","かかりつけ医医療機関"]
[null,null,null,null,null,null,null,null,null,null,"特記事項（施設名等）",null,null,null,null,null,null,null,"担　当　医　師"]
[null,null,null,null,null,null,null,null,null,null,null,null,null,null,null,null,null,null,"主病名"]
[]
[null,null,null,null,null,null,null,null,null,null,null,null,null,null,null,null,null,null,"合併症"]
[]
["本人◎　　　死亡者×　  （ ）に年齢　　例：（◎81）\n男　□　女　〇　　　　同居者は線で囲む　　\n★　キーパーソン\n",null,null,null,null,null,null,null,null,null,null,null,null,null,null,null,null,null,"薬物アレルギー"]
[]
["在宅介護生活状況","居宅介護支援事業所",null,null,null,null,null,null,null,null,null,null,null,null,null,null,null,null,"感染症等"]
[null,"担当介護支援専門員"]
[null,"1）","居宅サービス",null,null,null,null,null,null,null,"月","火","水","木","金","土","日",null,"*処方内容(持参薬)または特別な医療（IVH、胃瘻等）\n・\n・\n・"]
[]
[]
[null,null,null,null,null,null,null,null,null,null,null,null,null,null,null,null,null,"身体情報","1）","麻痺",null,null,null,null,null,null,null,"部位"]
[null,null,null,null,null,null,null,null,null,null,null,null,null,null,null,null,null,null,"2）","筋力低下",null,null,null,null,null,null,null,"部位"]
[null,null,null,null,null,null,null,null,null,null,null,null,null,null,null,null,null,null,"3）","関節の拘縮",null,null,null,null,null,null,null,"部位"]
[null,null,null,null,null,null,null,null,null,null,null,null,null,null,null,null,null,null,"4）","慢性疼痛",null,null,null,null,null,null,null,"部位"]
[null,"2）","他介護保険サービス",null,null,null,null,null,null,null,null,null,null,null,null,null,null,null,"5）","視力障害",null,null,null,null,null,null,null,"生活支障"]
[null,null,null,null,null,null,null,null,null,null,null,null,null,null,null,null,null,null,"6）","聴覚障害",null,null,null,null,null,null,null,"生活支障"]
[null,null,null,null,null,null,null,null,null,null,null,null,null,null,null,null,null,null,"7）","言語障害",null,null,null,null,null,null,null,"生活支障"]
[null,"3）","福祉用具貸与",null,null,null,null,null,null,null,null,null,null,null,null,null,null,null,"8）","嚥下障害",null,null,null,null,null,null,null,"生活支障"]
[null,"4）","インフォーマルサービス",null,null,null,null,null,null,null,null,null,null,null,null,null,null,null,"9）","皮膚疾患",null,null,null,null,null,null,null,"部位"]
[null,"5）","その他",null,null,null,null,null,null,null,null,null,null,null,null,null,null,null,"10）","褥瘡",null,null,null,null,null,null,null,"部位"]
["分類","評価項目",null,null,null,null,null,null,null,"評価尺度",null,null,null,null,"評価点",null,null,null,"*身体計測日 　　   年       　月      　日",null,null,"平成○年○月",null,null,null,"身　　長",null,null,null,"cm","体　　重",null,null,"kg"]
[null,null,null,null,null,null,null,null,null,5,4,3,2,1,"前々回","前回","今回","精神及び心の情報","1）","認知症",null,null,null,null,null,null,null,"病名"]
["身体面","1）","寝返り",null,null,null,null,null,null,"できる","おおむねできる","支援があればできる","一部介助があればできる","全介助を要する",{"$f":"'②（会議開催日　Ｈ○年○月○日）'!O30","v":5},{"$f":"'②（会議開催日　Ｈ○年○月○日）'!P30","v":4},3,null,null,"①","周辺状況",null,null,null,null,null,null,"②","HDS-R",null,null,null,null,"点"]
[null,"2）","起き上がり",null,null,null,null,null,null,null,null,null,null,null,{"$f":"'②（会議開催日　Ｈ○年○月○日）'!O31","v":4},{"$f":"'②（会議開催日　Ｈ○年○月○日）'!P31","v":3},3,null,"2）","不眠症"]
[null,"3）","座位保持",null,null,null,null,null,null,null,null,null,null,null,{"$f":"'②（会議開催日　Ｈ○年○月○日）'!O32","v":5},{"$f":"'②（会議開催日　Ｈ○年○月○日）'!P32","v":2},2,null,"3）","高次脳機能障害"]
[null,"4）","立ち上がり",null,null,null,null,null,null,null,null,null,null,null,{"$f":"'②（会議開催日　Ｈ○年○月○日）'!O33","v":4},{"$f":"'②（会議開催日　Ｈ○年○月○日）'!P33","v":3},2,null,"4）","意識障害"]
[null,"5）","移乗動作",null,null,null,null,null,null,null,null,null,null,null,{"$f":"'②（会議開催日　Ｈ○年○月○日）'!O34","v":5},{"$f":"'②（会議開催日　Ｈ○年○月○日）'!P34","v":3},2,null,"6）","精神障害",null,null,null,null,null,null,null,"症状"]
[null,"6）","歩行・移動（屋内・屋外）",null,null,null,null,null,null,null,null,null,null,null,{"$f":"'②（会議開催日　Ｈ○年○月○日）'!O35","v":5},{"$f":"'②（会議開催日　Ｈ○年○月○日）'!P35","v":3},2,null,"7）","社会生活障害",null,null,null,null,null,null,null,"症状"]
["生活面","1）","入浴",null,null,null,null,null,null,null,null,null,null,null,{"$f":"'②（会議開催日　Ｈ○年○月○日）'!O36","v":3},{"$f":"'②（会議開催日　Ｈ○年○月○日）'!P36","v":2},3,null,"８）その他"]
[null,"2）","掃除",null,null,null,null,null,null,null,null,null,null,null,{"$f":"'②（会議開催日　Ｈ○年○月○日）'!O37","v":2},{"$f":"'②（会議開催日　Ｈ○年○月○日）'!P37","v":2},2]
[null,"3）","洗濯",null,null,null,null,null,null,null,null,null,null,null,{"$f":"'②（会議開催日　Ｈ○年○月○日）'!O38","v":3},{"$f":"'②（会議開催日　Ｈ○年○月○日）'!P38","v":2},2,"リハビリ","担当医療機関名",null,null,null,null,null,null,null,"担当者名（ＯＴ，ＰＴ等）"]
[null,"4）","調理",null,null,null,null,null,null,null,null,null,null,null,{"$f":"'②（会議開催日　Ｈ○年○月○日）'!O39","v":1},{"$f":"'②（会議開催日　Ｈ○年○月○日）'!P39","v":1},1,null,"1）","機能訓練"]
[null,"5）","外出（通院・買い物）",null,null,null,null,null,null,null,null,null,null,null,{"$f":"'②（会議開催日　Ｈ○年○月○日）'!O40","v":4},{"$f":"'②（会議開催日　Ｈ○年○月○日）'!P40","v":2},2,null,"2）","物理療法"]
[null,"6）","金銭管理",null,null,null,null,null,null,null,null,null,null,null,{"$f":"'②（会議開催日　Ｈ○年○月○日）'!O41","v":3},{"$f":"'②（会議開催日　Ｈ○年○月○日）'!P41","v":2},2,null,"3）","装具等"]
["健康面","1）","食事",null,null,null,null,null,null,null,null,null,null,null,{"$f":"'②（会議開催日　Ｈ○年○月○日）'!O42","v":3},{"$f":"'②（会議開催日　Ｈ○年○月○日）'!P42","v":4},2,null,"リハビリの課題"]
[null,"2）","排泄",null,null,null,null,null,null,null,null,null,null,null,{"$f":"'②（会議開催日　Ｈ○年○月○日）'!O43","v":2},{"$f":"'②（会議開催日　Ｈ○年○月○日）'!P43","v":5},2]
[null,"3）","更衣",null,null,null,null,null,null,null,null,null,null,null,{"$f":"'②（会議開催日　Ｈ○年○月○日）'!O44","v":3},{"$f":"'②（会議開催日　Ｈ○年○月○日）'!P44","v":3},2]
[null,"4）","薬管理",null,null,null,null,null,null,null,null,null,null,null,{"$f":"'②（会議開催日　Ｈ○年○月○日）'!O45","v":2},{"$f":"'②（会議開催日　Ｈ○年○月○日）'!P45","v":1},1,"歯科情報","かかりつけ歯科医療機関名",null,null,null,null,null,null,null,null,"担当歯科医師名"]
[null,"5）","口腔ケア",null,null,null,null,null,null,null,null,null,null,null,{"$f":"'②（会議開催日　Ｈ○年○月○日）'!O46","v":2},{"$f":"'②（会議開催日　Ｈ○年○月○日）'!P46","v":2},2,null,"1）","歯科口腔疾患"]
["精神認知面","1）","見当識（場所がわからない）",null,null,null,null,null,null,"問題がない","疑いがある","ある(頻度低い）","ある(頻度高い）","常態化している",{"$f":"'②（会議開催日　Ｈ○年○月○日）'!O47","v":2},{"$f":"'②（会議開催日　Ｈ○年○月○日）'!P47","v":3},3,null,"2）","義歯の有無"]
[null,"2）","記憶（時系列がわからない）",null,null,null,null,null,null,null,null,null,null,null,{"$f":"'②（会議開催日　Ｈ○年○月○日）'!O48","v":4},{"$f":"'②（会議開催日　Ｈ○年○月○日）'!P48","v":4},4,null,"3）","定期診察の必要性"]
[null,"3）","精神状態（被害妄想、幻覚等）",null,null,null,null,null,null,null,null,null,null,null,{"$f":"'②（会議開催日　Ｈ○年○月○日）'!O49","v":3},{"$f":"'②（会議開催日　Ｈ○年○月○日）'!P49","v":2},3,null,"口腔ケアの課題"]
[null,"4）","徘徊",null,null,null,null,null,null,null,null,null,null,null,{"$f":"'②（会議開催日　Ｈ○年○月○日）'!O50","v":3},{"$f":"'②（会議開催日　Ｈ○年○月○日）'!P50","v":2},2]
[null,"5）","判断力・意思決定",null,null,null,null,null,null,null,null,null,null,null,{"$f":"'②（会議開催日　Ｈ○年○月○日）'!O51","v":2},{"$f":"'②（会議開催日　Ｈ○年○月○日）'!P51","v":2},2]
[null,"6）","対人トラブル",null,null,null,null,null,null,null,null,null,null,null,{"$f":"'②（会議開催日　Ｈ○年○月○日）'!O52","v":4},{"$f":"'②（会議開催日　Ｈ○年○月○日）'!P52","v":4},4,"薬剤情報","かかりつけ薬局名",null,null,null,null,null,null,null,null,"担当薬剤師名"]
[null,"7）","社会参加",null,null,null,null,null,null,null,null,null,null,null,{"$f":"'②（会議開催日　Ｈ○年○月○日）'!O53","v":1},{"$f":"'②（会議開催日　Ｈ○年○月○日）'!P53","v":1},1,null,"1）","薬の管理"]
["食事","1）","摂取方法",null,null,null,null,null,null,null,null,null,null,null,null,null,null,null,"2）","服薬状況（残薬確認）"]
[null,"2）","食事形態",null,null,null,"主　　食",null,null,null,null,null,null,"副　　食",null,null,null,null,"3）","家族の協力",null,null,null,null,null,null,null,null,"4）","他院処方"]
[null,"3）","水分摂取状況",null,null,null,null,null,null,null,null,null,null,null,null,null,null,null,"服薬の課題"]
[null,"4）","嗜好/禁忌食品"]
[null,null,null,null,null,null,null,null,null,null,null,null,null,null,null,null,null,"今後の方針","医療面","岐阜県医師会在宅療養あんしん病床登録　"]
[null,null,null,null,null,null,null,null,null,null,null,null,null,null,null,null,null,null,null,"延命処置について"]
[null,null,null,null,null,null,null,null,null,null,null,null,null,null,null,null,null,null,null,"※希望するを選択した場合は、以下の急変時の対応を選択してください。"]
[null,null,null,null,null,null,null,null,null,null,null,null,null,null,null,null,null,null,null,"・心臓マッサージ　　　　",null,null,null,null,null,null,null,"・気管内挿管　　　　"]
[null,null,null,null,null,null,null,null,null,null,null,null,null,null,null,null,null,null,null,"・除細動（電気ショック）　 ",null,null,null,null,null,null,null,"・人工呼吸　　"]
[null,null,null,null,null,null,null,null,null,null,null,null,null,null,null,null,null,null,null,"・蘇生に関わる薬剤の投与",null,null,null,null,null,null,null,"（人工呼吸器の装着・バッグアンドマスクなど）"]
[null,null,null,null,null,null,null,null,null,null,null,null,null,null,null,null,null,null,"介護面の課題等","通所介護\n通所 リハ"]
[]
[]
[null,null,null,null,null,null,null,null,null,null,null,null,null,null,null,null,null,null,null,"訪問\n介護"]
[]
[]
[null,null,null,null,null,null,null,null,null,null,null,null,null,null,null,null,null,null,null,"短期\n入所"]

{"sheet":"評価一覧 (月別)","index":4,"n_rows":27,"n_cols":15,"rows_kept":27,"cut":false,"hidden":false,"merged":[[15,0,19,0],[20,0,26,0],[0,0,0,14],[1,0,2,0],[1,1,2,2],[1,3,1,14],[3,0,8,0],[9,0,14,0]]}
["生活機能分類表＜評価一覧：月別＞"]
["分類","評価項目",null,"評価点"]
[null,null,null,1,2,3,4,5,6,7,8,9,10,11,12]
["身体面","1）","寝返り"]
[null,"2）","起き上がり"]
[null,"3）","座位保持"]
[null,"4）","立ち上がり"]
[null,"5）","移乗動作"]
[null,"6）","歩行・移動"]
["生活面","1）","入浴"]
[null,"2）","掃除"]
[null,"3）","洗濯"]
[null,"4）","調理"]
[null,"5）","外出"]
[null,"6）","金銭管理"]
["健康面","1）","食事"]
[null,"2）","排泄"]
[null,"3）","更衣"]
[null,"4）","薬管理"]
[null,"5）","口腔ケア"]
["精神認知面","1）","見当識"]
[null,"2）","記憶"]
[null,"3）","精神状態"]
[null,"4）","徘徊"]
[null,"5）","判断力・意思決定"]
[null,"6）","対人トラブル"]
[null,"7）","社会参加"]

{"sheet":"選択肢一覧","index":5,"n_rows":22,"n_cols":6,"rows_kept":22,"cut":false,"hidden":false,"merged":[]}
["選択肢（プルダウン）一覧"]
["介護度について",null,"食事摂取方法と薬の介助について","精神障害症状一覧","居宅サービス一覧"]
["未申請","有り","自立","うつ病","訪問介護","自宅等で、ホームヘルパーなどによる入浴、排せつ、食事等の日常生活上の世話を受けるサービス"]
["区分変更中　　　","無し","一部自立","統合失調症","訪問入浴介護","自宅等で、簡易浴槽を使って入浴の介護を受けるサービス"]
["新規申請中 　　",null,"全介助","その他","訪問看護","自宅等で、看護師などによる療養上の世話や必要な診療の補助を受けるサービス【注：病院又は診療所はみなし指定のため数に含まない】"]
["非該当　",null,null,null,"訪問リハビリテーション","自宅等で、理学療法士などによる理学療法等の必要なリハビリテーションを受けるサービス"]
["要支援１",null,"食事形態","社会生活症状一覧","通所介護","通所介護施設（デイサービスセンター）に通って、入浴、排せつ、食事等の日常生活上の世話や機能訓練を受けるサービス"]
["要支援 ２　",null,"普通食","人格障害","通所リハビリテーション","通所リハビリテーション施設に通って、理学療法等の必要なリハビリテーションを受けるサービス"]
["要介護 １　",null,"刻み食","孤独感","居宅療養管理指導","自宅等で、医師、歯科医師などによる療養上の管理や指導を受けるサービス"]
["要介護 ２",null,"ミキサー食","ひきこもり","その他の介護サービス一覧"]
["要介護 ３",null,"とろみ食","自閉","短期入所生活介護","特別養護老人ホーム等に短期入所し、入浴、排せつ、食事等の日常生活上の世話や機能訓練を受けるサービス"]
["要介護 ４",null,"宅配食","他害行為","短期入所療養介護","老人保健施設等に短期入所し、看護、医学的管理のもので、介護、機能訓練、日常生活上の世話を受けるサービス"]
["要介護 ５",null,"治療食","金銭執着","特定施設入居者生活介護","有料老人ホーム等で、入浴、排せつ、食事等の日常生活上の世話、機能訓練、療養上の世話を受けるサービス"]
[null,null,"その他",null,"福祉用具貸与","自宅等で、車いす、ベッド等の福祉用具の貸与を受けるサービス（要介護度によっては貸与できない用具があります。）"]
[null,null,"※上記以外直接入力してください",null,"特定福祉用具販売","入浴、排せつ等に使う福祉用具購入のサービス"]
[null,null,null,null,"定期巡回・随時対応型訪問介護看護","定期的な巡回訪問や随時通報により、日中・夜間を通じて、訪問介護や訪問看護を受けるサービス"]
[null,null,null,null,"小規模多機能型居宅介護","通いを中心に、利用者の様態や希望に応じて、随時、泊まりや訪問サービスを組み合わせて提供するサービス"]
[null,null,null,null,"認知症対応型共同生活介護","認知症の方が共同生活を営む住居（グループホーム）において、入浴、排せつ、食事等の日常生活上の世話や機能訓練を受けるサービス"]
[null,null,null,null,"複合型サービス（看護小規模多機能型居宅介護）","小規模多機能型居宅介護と訪問看護を組み合わせて受けるサービス"]
[null,null,null,null,"介護老人福祉施設","特別養護老人ホームに入所して、入浴、排せつ、食事等の日常生活上の世話、機能訓練、健康管理、療養上の世話を受けるサービス"]
[null,null,null,null,"介護老人保健施設","老人保健施設に入所して、看護、医学的管理のもとに介護、機能訓練等の医療や日常生活上の世話を受けるサービス"]
[null,null,null,null,"介護療養型医療施設","療養病床等に入院して、療養上の管理、看護、医学的管理のもとに介護、機能訓練その他必要な医療を受けるサービス"]